bitfinex/quotes_ETHUSD_20250210
["timestamp","ask_amount","ask_price","bid_price","bid_amount"]
[1739210757852,0.55,2682.0,2681.5,3.7292]
[1739210758184,0.55,2682.0,2681.6,3.72903]
[1739210758586,0.55,2682.0,2681.5,7.45831]
[1739210758883,4.27864,2682.0,2681.5,3.72915]
[1739210759053,0.55,2682.0,2681.5,3.72915]
[1739210760193,0.55,2682.0,2681.6,3.72911]
[1739210760694,0.55,2682.0,2681.5,3.72915]
[1739210761055,0.55,2682.0,2681.6,3.72909]
[1739210761271,4.2786,2682.0,2681.5,3.72915]
[1739210761472,0.55,2682.1,2681.5,3.72915]
[1739210761783,3.72842,2682.1,2681.2,0.7929]
[1739210762083,3.72892,2681.8,2681.2,0.7929]
[1739210762391,0.8114,2681.9,2681.4,3.72933]
[1739210762392,4.54018,2681.9,2681.4,3.72933]
[1739210762775,4.54013,2681.9,2681.4,3.72933]
[1739210762982,1.3614,2682.2,2681.4,3.72939]
[1739210763188,1.3614,2682.2,2681.8,3.72876]
[1739210763353,1.3614,2682.2,2681.7,0.8272]
[1739210763685,5.0897,2682.2,2681.7,0.8272]
[1739210764066,8.81807,2682.2,2681.7,0.8272]
[1739210764259,1.3614,2682.2,2681.9,3.72867]
[1739210764475,0.8114,2682.5,2682.1,3.72833]
[1739210764673,0.8114,2683.0,2682.5,3.72779]
[1739210764929,0.8114,2683.2,2682.2,0.8272]
[1739210765088,0.55,2683.1,2682.8,3.72738]
[1739210765405,4.53841,2683.2,2682.6,3.72763]
[1739210765605,3.72727,2683.0,2682.4,3.72794]
[1739210766086,0.55,2683.1,2682.2,0.8272]
[1739210766269,0.8114,2684.0,2682.7,0.015]
[1739210766587,0.8114,2684.9,2683.5,0.8272]
[1739210766790,0.55147083,2684.8,2684.4,3.7252]
[1739210766946,0.55147083,2684.8,2684.2,3.7255]
[1739210767152,3.72482,2684.7,2684.1,0.8272]
[1739210767347,3.72537,2684.3,2683.7,0.8272]
[1739210767591,3.72587,2684.0,2683.3,3.72667]
[1739210768011,3.72617,2683.8,2683.2,0.8272]
[1739210768153,0.55,2683.9,2683.2,0.8272]
[1739210768154,1.3614,2683.9,2683.2,4.55408]
[1739210768692,3.72607,2683.8,2683.2,0.8272]
[1739210768892,3.0,2683.7,2683.1,3.72689]
[1739210769293,3.0,2683.7,2683.3,3.72675]
[1739210769795,3.0,2683.8,2683.2,3.72676]
[1739210769996,0.8114,2683.9,2683.3,3.72671]
[1739210770200,3.7255,2684.2,2683.5,3.72635]
[1739210770356,3.55,2684.1,2683.5,4.55355]
[1739210770964,3.55,2684.1,2683.6,3.72632]
[1739210771389,3.55,2684.1,2683.5,4.55363]
[1739210771588,3.55,2684.1,2683.6,3.72626]
[1739210771810,3.55,2684.1,2683.5,4.55363]
[1739210771963,7.27575,2684.1,2683.5,4.55363]
[1739210772424,3.55,2684.1,2683.5,4.55363]
[1739210772602,7.27568,2684.1,2683.5,4.55363]
[1739210772763,3.55,2684.1,2683.5,4.55354]
[1739210772967,3.8114,2684.3,2683.5,0.8272]
[1739210773311,0.8114,2684.7,2684.3,3.72536]
[1739210773515,3.72449,2685.0,2684.4,3.72521]
[1739210774063,3.0,2684.9,2684.4,3.72521]
[1739210774287,6.72455,2684.9,2684.4,3.72521]
[1739210774604,0.55,2684.8,2684.2,3.72539]
[1739210774776,0.55,2684.8,2684.3,3.72536]
[1739210775699,3.0,2684.9,2684.4,3.72511]
[1739210776670,0.8114,2685.1,2684.1,0.8272]
[1739210776897,3.72384,2685.4,2684.8,3.72455]
[1739210777101,3.72421,2685.2,2684.6,3.72491]
[1739210777271,0.55,2685.0,2684.4,3.72514]
[1739210777464,5.07128,2685.0,2684.4,3.72514]
[1739210777665,5.07128,2685.0,2684.5,3.72505]
[1739210778086,1.3468,2685.0,2684.5,3.72505]
[1739210778306,1.3468,2685.0,2684.6,3.72493]
[1739210778470,3.0,2685.2,2684.6,3.72493]
[1739210778664,4.52063,2685.5,2684.8,3.72457]
[1739210778997,0.7968,2685.8,2685.5,3.72362]
[1739210779203,0.7968,2685.8,2684.9,3.72446]
[1739210779204,3.72358,2685.6,2684.9,3.72446]
[1739210779511,3.72358,2685.6,2685.0,3.72439]
[1739210779676,3.72358,2685.6,2685.1,3.72425]
[1739210779879,4.52013,2685.8,2685.1,3.72425]
[1739210780078,4.52013,2685.8,2685.3,3.7239]
[1739210780079,0.55,2685.6,2685.3,3.7239]
[1739210780278,0.55,2685.6,2685.1,3.72425]
[1739210780279,0.55,2685.6,2685.1,7.44842]
[1739210780483,4.27356,2685.6,2685.1,3.72417]
[1739210780796,0.55,2685.6,2685.2,3.7241]
[1739210781586,4.27356,2685.6,2685.1,3.72417]
[1739210781773,3.72357,2685.6,2685.1,3.72417]
[1739210782464,5.07013,2685.8,2685.2,3.72403]
[1739210782465,0.55,2685.7,2685.2,3.72403]
[1739210782667,0.7968,2686.6,2686.0,3.72288]
[1739210782868,0.7968,2686.6,2685.9,0.03723006]
[1739210783069,0.7968,2687.0,2686.5,3.72226]
[1739210783377,3.72126,2687.3,2686.6,3.72207]
[1739210783699,3.0,2687.2,2686.6,3.72207]
[1739210784011,3.72157,2687.1,2686.2,3.72266]
[1739210784191,3.0,2687.2,2686.6,3.72207]
[1739210784378,3.0,2687.2,2686.6,7.44414]
[1739210784579,3.0,2687.2,2686.6,3.72207]
[1739210784792,6.72138,2687.2,2686.6,3.72207]
[1739210785314,3.7213,2687.3,2686.1,0.792]
[1739210785515,3.72156,2687.1,2686.5,3.72229]
[1739210785729,0.55,2687.0,2686.5,3.72229]
[1739210786215,0.55,2686.3,2685.7,3.72342]
[1739210786510,3.7968,2686.7,2685.2,4.51611]
[1739210786511,0.7968,2686.7,2686.2,3.72267]
[1739210786911,0.7968,2686.7,2686.2,3.72262]
[1739210787447,4.27227,2686.6,2686.0,3.72293]
[1739210787723,0.7968,2686.7,2686.2,3.72272]
[1739210787878,4.51884,2686.7,2686.2,3.72272]
[1739210788076,4.51884,2686.7,2686.0,3.72295]
[1739210788294,8.24098,2686.7,2686.0,7.44587]
[1739210788494,4.51884,2686.7,2686.2,3.72272]
[1739210788694,0.7968,2686.7,2686.2,3.72272]
[1739210789314,0.7968,2686.7,2686.2,7.44533]
[1739210789514,0.7968,2686.7,2686.2,3.72261]
[1739210789813,0.55,2686.6,2686.0,3.7229]
[1739210790000,4.27221,2686.6,2686.0,3.7229]
[1739210790208,4.2722,2686.6,2686.0,3.7229]
[1739210790721,3.72232,2686.5,2686.0,3.7229]
[1739210790891,0.55,2686.6,2686.0,3.7229]
[1739210791097,4.27221,2686.6,2686.0,3.7229]
[1739210791615,4.27221,2686.6,2686.0,7.44582]
[1739210791814,4.51889,2686.7,2686.1,3.72275]
[1739210792014,4.51889,2686.7,2686.0,3.7229]
[1739210792015,4.51889,2686.7,2686.2,3.72271]
[1739210792317,3.72228,2686.6,2686.0,3.7229]
[1739210792706,3.72228,2686.6,2686.0,7.44582]
[1739210792911,3.72228,2686.6,2686.0,3.7229]
[1739210793415,0.7968,2686.7,2686.2,3.72271]
[1739210793599,0.7968,2686.7,2686.3,3.72257]
[1739210793986,0.7968,2687.0,2686.5,3.72224]
[1739210794206,4.51842,2687.0,2686.5,3.72224]
[1739210794417,4.27191,2686.8,2686.3,3.72246]
[1739210794793,0.55,2686.8,2686.3,7.44496]
[1739210795121,0.55,2686.8,2686.5,3.7223]
[1739210795687,7.51843,2687.0,2686.5,3.7223]
[1739210796013,7.51843,2687.0,2686.3,3.72246]
[1739210796217,0.7968,2687.0,2685.9,0.792]
[1739210796417,0.7968,2687.3,2686.6,7.44434]
[1739210796617,0.7968,2687.3,2686.8,3.72183]
[1739210796819,3.72135,2687.2,2686.6,3.72217]
[1739210797140,4.27157,2687.1,2686.6,3.72217]
[1739210797287,0.55,2687.1,2686.6,3.72217]
[1739210797917,4.2715,2687.1,2686.6,3.72217]
[1739210799025,0.55,2687.1,2686.6,7.44427]
[1739210799326,0.55,2687.1,2686.7,3.72203]
[1739210799713,0.55,2687.2,2686.8,3.72188]
[1739210800211,0.55,2687.2,2686.6,3.72208]
[1739210800410,4.27141,2687.2,2686.7,3.72203]
[1739210800616,4.27141,2687.2,2686.6,3.72207]
[1739210800815,0.55,2687.0,2686.6,3.72207]
[1739210801187,0.55,2687.1,2686.8,3.72189]
[1739210801599,0.7968,2687.3,2686.8,3.72179]
[1739210801802,1e-05,2687.4,2687.3,4.5132]
[1739210802090,0.0262883,2688.9,2688.0,3.72022]
[1739210802091,0.7968,2688.5,2688.0,3.72022]
[1739210802296,3.8716736,2688.4,2687.4,8.75]
[1739210802508,3.72005,2688.2,2687.3,0.792]
[1739210802706,0.1518636,2688.4,2687.3,0.792]
[1739210803023,4.51721,2687.9,2687.3,0.792]
[1739210803817,0.7968,2687.9,2687.5,3.72084]
[1739210804123,3.72002,2688.2,2687.5,3.72081]
[1739210804518,3.72002,2688.2,2687.6,3.7207]
[1739210805233,0.55,2688.1,2687.3,4.51315]
[1739210805414,3.72029,2688.0,2687.5,3.7209]
[1739210805725,3.72029,2688.0,2687.3,4.51315]
[1739210805929,3.72028,2688.0,2687.2,3.72132]
[1739210806101,0.55,2687.7,2687.1,4.0034]
[1739210806301,3.72092,2687.6,2687.1,0.282]
[1739210806694,0.55,2687.5,2687.1,0.282]
[1739210807051,0.55,2687.3,2686.8,3.72187]
[1739210807211,0.55,2687.3,2686.9,3.72175]
[1739210807799,0.55,2687.3,2687.0,3.72161]
[1739210808235,0.8179,2687.4,2686.4,1.57339625]
[1739210808556,0.8179,2687.7,2687.2,3.72126]
[1739210809163,0.8179,2687.7,2687.2,3.72122]
[1739210809452,3.55,2687.9,2687.4,3.72105]
[1739210810092,7.27038,2687.9,2687.4,3.72105]
[1739210810496,0.55,2687.7,2687.2,3.72122]
[1739210811309,0.55,2687.7,2687.3,3.72116]
[1739210812098,4.27069,2687.7,2687.0,4.54963]
[1739210812395,0.55,2687.7,2687.2,3.72123]
[1739210813143,0.55,2687.7,2687.2,7.44249]
[1739210813297,0.55,2687.9,2687.0,3.72158]
[1739210813503,0.55,2687.4,2686.8,3.72188]
[1739210813835,0.8179,2687.3,2687.0,3.72152]
[1739210815233,0.8179,2687.3,2686.8,3.7218]
[1739210815455,3.72161,2687.1,2686.5,3.72224]
[1739210815610,3.72169,2687.0,2686.5,3.72224]
[1739210815933,0.55,2686.7,2686.3,3.72256]
[1739210817100,4.53984,2686.8,2686.1,4.55088]
[1739210817101,0.8179,2686.8,2686.1,0.8281]
[1739210817301,0.8179,2686.8,2686.4,3.72243]
[1739210818199,0.8179,2686.8,2686.2,7.44529]
[1739210818405,0.55,2686.7,2686.3,3.72257]
[1739210818605,4.27207,2686.7,2686.1,3.72273]
[1739210818807,7.9942,2686.7,2686.1,3.72273]
[1739210819028,3.72217,2686.6,2686.1,3.72273]
[1739210819229,3.72231,2686.5,2685.9,3.72305]
[1739210819538,0.8179,2686.4,2686.2,3.72272]
[1739210820659,0.8179,2686.4,2686.0,7.4459]
[1739210820951,0.8179,2686.4,2686.2,3.7227]
[1739210821158,0.8179,2686.4,2686.0,3.72293]
[1739210821358,0.8179,2686.4,2685.5,4.55173]
[1739210821359,0.55,2686.3,2685.6,3.72352]
[1739210821575,0.55,2686.0,2685.6,3.72352]
[1739210821769,0.7937,2685.9,2685.6,3.72352]
[1739210821924,0.7937,2685.9,2685.6,3.72347]
[1739210822492,0.55,2686.2,2685.2,0.7859]
[1739210822493,1.3437,2686.2,2685.2,4.50994]
[1739210822676,0.7937,2686.6,2686.1,3.72286]
[1739210822876,0.7937,2686.6,2686.2,3.72264]
[1739210823028,0.7937,2686.6,2686.1,3.72286]
[1739210823229,0.7937,2686.6,2686.1,3.72278]
[1739210823481,4.51553,2686.9,2686.4,3.72238]
[1739210823779,3.7219,2686.8,2686.2,3.72264]
[1739210824087,3.72218,2686.6,2686.0,3.72287]
[1739210824280,4.51617,2686.4,2685.9,3.72314]
[1739210824462,0.55,2686.3,2685.8,3.72317]
[1739210824828,0.55,2686.3,2685.9,3.7231]
[1739210825178,0.55,2686.3,2686.0,3.72291]
[1739210825843,0.7937,2686.4,2686.2,3.72262]
[1739210826174,0.7779,2686.7,2686.3,3.72249]
[1739210826379,4.49995,2686.7,2686.1,3.72278]
[1739210826524,4.49995,2686.7,2685.9,3.72305]
[1739210826525,3.72247,2686.4,2685.9,3.72305]
[1739210826727,0.55,2686.4,2685.9,3.72305]
[1739210826949,0.55,2686.4,2686.0,3.72298]
[1739210827345,0.7779,2686.7,2685.8,3.7605095]
[1739210827577,4.50001,2686.7,2686.1,3.72279]
[1739210827858,0.7779,2686.7,2685.9,3.72314]
[1739210828035,1.3279,2686.3,2685.8,3.72328]
[1739210828241,1.3279,2686.3,2685.9,3.72303]
[1739210828458,0.7779,2686.3,2685.9,3.72303]
[1739210828759,0.7779,2686.6,2686.2,3.7226]
[1739210829645,0.55,2686.5,2686.0,3.72292]
[1739210830930,0.55,2686.5,2686.1,3.72284]
[1739210831126,4.27231,2686.5,2685.8,3.72322]
[1739210831340,0.7779,2686.2,2685.8,3.72322]
[1739210831552,0.7779,2686.2,2685.9,3.72311]
[1739210831765,0.7779,2686.2,2686.0,3.72298]
[1739210831930,0.7779,2686.6,2686.0,3.72298]
[1739210832132,0.55,2686.5,2686.1,7.44556]
[1739210832480,4.50008,2686.6,2686.1,3.72286]
[1739210832481,4.5002,2686.6,2686.1,3.72286]
[1739210832630,0.55,2686.5,2685.9,3.72304]
[1739210832833,0.55,2686.5,2686.1,3.72283]
[1739210833072,0.7779,2686.6,2686.3,3.72247]
[1739210833455,0.7779,2686.9,2686.4,3.72233]
[1739210833662,0.7779,2687.2,2686.8,3.72189]
[1739210833863,0.7779,2687.2,2686.9,3.72175]
[1739210834061,0.7779,2687.6,2686.7,3.72203]
[1739210834592,0.7779,2687.6,2686.8,3.75907391]
[1739210834734,0.7779,2688.1,2687.4,3.72106]
[1739210834934,0.7779,2688.1,2687.7,3.72062]
[1739210835135,4.49808,2688.1,2687.5,3.72085]
[1739210835444,3.72062,2687.8,2687.1,3.72135]
[1739210835646,3.72038,2687.9,2687.2,3.72124]
[1739210835844,4.49873,2687.6,2687.0,3.72153]
[1739210836189,4.49873,2687.6,2686.9,4.54452]
[1739210836190,0.7779,2687.6,2687.1,3.72136]
[1739210837591,0.55,2687.5,2686.9,3.72171]
[1739210837957,0.55,2687.5,2686.7,0.284]
[1739210838162,0.55,2687.5,2687.2,3.72132]
[1739210839081,0.55,2687.5,2687.0,7.44313]
[1739210839282,0.55,2687.5,2687.0,3.72152]
[1739210839484,0.55,2687.5,2687.1,3.72148]
[1739210839887,0.55,2687.2,2686.6,4.51571]
[1739210840126,0.7779,2687.6,2686.5,3.72225]
[1739210840127,4.52888,2687.1,2686.5,3.72225]
[1739210840388,4.27162,2687.0,2686.5,3.72225]
[1739210840584,3.72194,2686.8,2686.2,0.283]
[1739210840784,0.55,2686.4,2685.8,3.72316]
[1739210840989,0.55,2686.1,2685.6,3.72344]
[1739210841204,3.4844584,2686.9,2685.7,3.7233]
[1739210841205,0.8073,2686.0,2685.7,3.7233]
[1739210841398,3.72238,2686.5,2685.9,3.72314]
[1739210841399,0.8073,2686.4,2685.9,3.72314]
[1739210841567,0.55,2686.3,2685.9,3.72314]
[1739210842351,0.55,2686.3,2685.9,7.44619]
[1739210842572,0.55,2686.3,2685.9,3.72305]
[1739210842886,0.55,2686.3,2685.9,7.44611]
[1739210843087,0.55,2686.3,2686.0,3.72297]
[1739210843402,0.55,2686.3,2685.7,3.72334]
[1739210843619,4.27259,2686.3,2685.8,3.72317]
[1739210844590,0.8073,2686.2,2685.8,3.72317]
[1739210845990,0.8073,2686.2,2685.3,4.90529354]
[1739210845991,0.8073,2686.2,2685.6,3.72349]
[1739210846295,0.55,2686.1,2685.6,3.72349]
[1739210846460,0.55,2686.1,2685.6,3.72348]
[1739210846655,0.55,2686.1,2685.7,3.72334]
[1739210846856,0.55,2686.1,2685.6,3.72348]
[1739210847093,0.8073,2686.2,2686.0,3.72299]
[1739210847495,0.55,2686.1,2685.6,7.44695]
[1739210847792,0.55,2686.1,2685.7,3.72341]
[1739210848294,3.72304,2686.0,2685.5,3.72368]
[1739210848611,4.53011,2686.2,2685.9,3.72302]
[1739210848612,0.8073,2686.2,2685.9,3.72302]
[1739210848920,0.8073,2686.2,2685.9,7.44605]
[1739210849068,0.8073,2686.2,2686.0,3.72299]
[1739210849276,0.8073,2686.2,2685.9,3.72302]
[1739210850815,3.72318,2685.9,2685.4,3.72379]
[1739210851029,3.72309,2686.0,2685.3,4.11165354]
[1739210851185,0.55,2685.9,2685.4,3.72372]
[1739210851393,0.8127,2685.8,2685.4,3.72372]
[1739210852107,3.72366,2685.6,2685.0,3.72429]
[1739210852397,0.55,2685.7,2685.0,3.72429]
[1739210852599,0.55,2685.7,2684.8,1.55076307]
[1739210852600,3.72387,2685.4,2684.8,3.72457]
[1739210852765,0.8127,2685.3,2684.8,3.72457]
[1739210852964,0.8127,2685.3,2684.7,0.38680466]
[1739210853201,0.8127,2685.3,2685.0,3.72431]
[1739210853588,0.8127,2685.3,2684.8,3.72467]
[1739210853814,4.27415,2685.2,2684.7,4.11152466]
[1739210853995,4.27412,2685.2,2684.4,3.72514]
[1739210854281,3.72463,2684.9,2684.4,3.72514]
[1739210854489,7.4489,2685.0,2684.4,3.72514]
[1739210854705,3.72442,2685.0,2684.4,3.72512]
[1739210855242,7.4489,2685.0,2684.4,3.72512]
[1739210855521,3.72454,2684.9,2684.4,3.72512]
[1739210855723,3.72442,2685.0,2684.4,3.72512]
[1739210855932,0.55,2685.0,2684.7,3.72476]
[1739210856077,0.55,2685.0,2684.8,3.72466]
[1739210856409,0.55,2685.0,2684.7,3.72476]
[1739210856703,0.8127,2685.1,2684.7,3.72469]
[1739210856872,0.8127,2685.1,2684.8,3.72467]
[1739210857572,0.8127,2685.1,2684.6,3.72483]
[1739210857773,4.27449,2685.0,2684.4,3.7252]
[1739210858199,0.55,2685.0,2684.6,3.72494]
[1739210859584,0.8127,2685.1,2684.4,3.72519]
[1739210859904,4.53593,2685.9,2685.2,3.72405]
[1739210860281,4.53593,2685.9,2685.3,3.7239]
[1739210860487,0.8127,2685.9,2685.5,3.7236]
[1739210860685,0.55,2685.8,2685.4,3.72371]
[1739210860872,0.8127,2685.9,2685.5,3.72368]
[1739210861075,0.8127,2685.9,2684.8,0.8105]
[1739210861297,0.8127,2685.9,2685.0,0.0075]
[1739210861499,0.8127,2686.2,2685.7,3.72335]
[1739210861701,4.53551,2686.2,2685.6,3.72345]
[1739210862106,3.72287,2686.1,2685.6,3.72345]
[1739210862315,3.72342,2685.7,2685.2,7.44803]
[1739210862511,3.72314,2685.9,2685.3,3.72394]
[1739210862738,3.72314,2685.9,2685.2,3.72399]
[1739210862937,3.72314,2685.9,2685.2,3.72398]
[1739210863107,0.55,2685.8,2685.2,3.72398]
[1739210863303,0.8127,2685.6,2685.0,4.5348]
[1739210863498,3.72374,2685.5,2684.8,3.72463]
[1739210863941,7.44757,2685.5,2684.9,3.7244]
[1739210864326,0.55,2685.1,2684.5,3.72506]
[1739210864523,4.27426,2685.1,2684.5,3.72506]
[1739210864726,0.55,2685.1,2684.7,3.72478]
[1739210865821,0.55,2685.2,2684.8,3.72466]
[1739210867409,0.55,2685.2,2684.7,3.72478]
[1739210867934,4.51879,2685.1,2684.6,3.72493]
[1739210869813,0.7945,2685.1,2684.6,3.72493]
[1739210870051,0.7945,2685.1,2684.7,3.72474]
[1739210870246,0.7945,2685.1,2684.6,3.72493]
[1739210870448,0.7945,2685.1,2684.8,3.72456]
[1739210870955,0.7945,2685.1,2684.8,7.44914]
[1739210871153,0.7945,2685.1,2684.8,3.72456]
[1739210871354,0.7945,2685.1,2684.7,3.72477]
[1739210871734,0.7945,2685.1,2684.6,3.72484]
[1739210871937,0.7945,2685.4,2684.4,3.4844584]
[1739210872134,0.7945,2685.4,2685.1,3.72418]
[1739210872428,0.7945,2685.4,2685.0,3.72434]
[1739210873235,0.7945,2685.4,2685.0,3.72439]
[1739210874259,0.7945,2685.4,2684.5,4.53745]
[1739210874260,3.72413,2685.2,2684.7,3.72471]
[1739210874552,0.55,2685.3,2684.8,3.7246]
[1739210874859,0.55,2685.3,2684.7,3.72471]
[1739210875066,0.55,2685.3,2684.9,3.72451]
[1739210875274,0.55,2685.3,2685.0,3.72435]
[1739210876074,0.55,2685.3,2685.0,3.72432]
[1739210876275,0.0075,2686.5,2684.5,4.52995]
[1739210876578,0.7945,2685.7,2685.3,3.72387]
[1739210877628,4.51794,2685.7,2685.2,3.72407]
[1739210877849,0.7945,2685.7,2685.3,3.72389]
[1739210878449,0.7945,2685.7,2685.0,3.72429]
[1739210878682,3.72357,2685.6,2685.1,3.72425]
[1739210878994,3.72357,2685.6,2685.2,3.72408]
[1739210879205,0.7945,2685.7,2685.3,3.72393]
[1739210880452,0.7945,2685.7,2685.4,3.72382]
[1739210881571,0.8199,2686.0,2685.6,3.72356]
[1739210882825,0.8199,2686.0,2685.6,3.72352]
[1739210883120,0.8199,2686.0,2685.6,3.72342]
[1739210884010,0.8199,2686.0,2685.7,3.72334]
[1739210884389,0.8199,2686.0,2685.7,3.72332]
[1739210884980,0.8199,2686.0,2685.6,3.72342]
[1739210885231,3.4844584,2686.9,2685.3,4.52574]
[1739210885232,0.8199,2686.2,2686.1,3.72286]
[1739210885409,0.8199,2686.8,2686.3,3.72246]
[1739210885608,4.54187,2686.8,2686.3,3.72246]
[1739210886208,0.8199,2686.8,2686.5,3.72221]
[1739210886509,3.72165,2687.0,2686.6,0.8018]
[1739210886707,0.0075,2687.9,2686.6,0.8018]
[1739210886708,0.76195233,2688.0,2687.8,3.72049]
[1739210886909,1.01524928,2688.3,2687.9,3.72036]
[1739210887084,1.01524928,2688.3,2687.4,3.4844584]
[1739210887288,3.72106,2687.4,2687.3,0.73212741]
[1739210887505,5.09096,2687.4,2687.3,0.73212741]
[1739210887718,3.72137,2687.2,2686.5,3.72223]
[1739210887922,3.72137,2687.2,2686.6,3.72215]
[1739210888102,5.09096,2687.4,2686.7,3.72193]
[1739210888410,5.09096,2687.4,2686.6,3.72215]
[1739210888583,5.09096,2687.4,2686.8,3.72186]
[1739210888772,1.3699,2687.4,2686.8,3.72186]
[1739210888998,1.3699,2687.4,2687.0,3.72152]
[1739210889200,0.8199,2687.4,2687.1,3.72146]
[1739210889813,0.8199,2687.4,2687.0,3.72152]
[1739210890015,0.8199,2687.4,2687.2,3.72132]
[1739210890585,0.8199,2687.4,2687.0,7.44305]
[1739210890797,0.8199,2687.4,2687.1,3.72146]
[1739210891197,0.8199,2687.4,2687.3,3.7212]
[1739210892204,0.8199,2687.7,2687.5,3.72088]
[1739210892407,0.8199,2688.1,2687.5,3.72088]
[1739210892753,0.8199,2688.1,2687.5,7.44171]
[1739210892933,4.54001,2688.1,2687.5,3.72083]
[1739210893090,0.55,2688.0,2687.5,7.44165]
[1739210893738,0.55,2688.0,2687.8,3.72048]
[1739210894031,0.8199,2688.1,2687.7,3.72062]
[1739210894321,0.8199,2688.1,2687.6,3.72066]
[1739210894824,4.5401,2688.1,2687.5,3.72088]
[1739210895121,4.5401,2688.1,2687.7,3.72062]
[1739210895122,0.8199,2688.1,2687.7,3.72062]
[1739210895302,0.55,2688.0,2687.6,3.72076]
[1739210895823,0.55,2688.0,2687.8,3.7205]
[1739210896223,0.55,2688.0,2687.6,7.44145]
[1739210896542,0.55,2688.0,2687.6,3.72069]
[1739210896741,0.8199,2688.1,2688.0,3.72023]
[1739210896921,0.8199,2688.1,2687.9,3.72027]
[1739210897237,0.8199,2688.1,2687.7,3.72057]
[1739210897803,0.8199,2688.1,2687.5,4.53764]
[1739210898008,0.8199,2688.1,2687.6,3.72067]
[1739210898329,0.8199,2688.1,2687.7,3.72064]
[1739210899037,0.8199,2688.1,2687.7,7.44128]
[1739210899248,0.8199,2688.1,2687.7,3.72064]
[1739210899408,0.8199,2688.1,2687.5,4.53767]
[1739210899607,0.8199,2688.1,2687.9,3.7203]
[1739210899810,0.55,2688.3,2687.7,3.72061]
[1739210900034,0.55,2688.3,2687.9,3.72028]
[1739210900218,0.55,2688.3,2687.8,0.18884923]
[1739210900625,0.55,2688.3,2688.1,3.72006]
[1739210900913,0.55,2688.1,2687.8,0.18884923]
[1739210901215,0.55,2688.3,2687.8,3.90933923]
[1739210901639,0.55,2688.3,2687.9,3.7203]
[1739210902026,0.55,2688.3,2688.0,3.72015]
[1739210902240,0.1518636,2688.4,2688.3,3.71982]
[1739210902445,0.1518636,2688.4,2688.2,3.71994]
[1739210902650,0.1518636,2688.4,2688.0,3.72012]
[1739210903048,3.8715436,2688.4,2687.8,0.18884923]
[1739210903250,3.72027,2688.0,2687.8,0.18884923]
[1739210903543,4.27037,2687.9,2687.8,0.18884923]
[1739210904041,0.8168,2688.1,2687.8,3.90935923]
[1739210904245,0.8168,2688.1,2687.9,3.72037]
[1739210904449,0.8168,2688.3,2687.9,7.44065]
[1739210904650,0.8168,2688.3,2687.9,3.72028]
[1739210904813,4.53665,2688.3,2687.8,0.18884923]
[1739210905013,4.53665,2688.3,2687.8,3.90933923]
[1739210905346,0.8168,2688.3,2687.8,3.90933923]
[1739210905518,0.8168,2688.3,2687.8,0.18884923]
[1739210905725,4.53672,2688.3,2687.8,0.18884923]
[1739210905924,3.72012,2688.1,2687.8,0.18884923]
[1739210906125,0.55,2688.0,2687.8,0.18884923]
[1739210906824,4.27033,2688.0,2687.8,0.18884923]
[1739210907020,0.55,2688.0,2687.8,0.18884923]
[1739210907226,0.8168,2688.3,2687.8,0.18884923]
[1739210907414,3.72017,2688.1,2687.8,0.18884923]
[1739210907614,0.55,2688.0,2687.8,0.18884923]
[1739210909208,0.55,2688.2,2687.8,0.18884923]
[1739210909413,0.55,2688.2,2687.8,3.90933923]
[1739210910037,0.55,2688.2,2687.8,0.18884923]
[1739210910234,0.55,2688.2,2687.8,3.90926923]
[1739210910543,0.55,2688.2,2687.9,3.72037]
[1739210910747,0.1518636,2688.4,2687.9,3.72037]
[1739210911043,3.8715436,2688.4,2687.9,3.72029]
[1739210911245,0.1518636,2688.4,2687.8,1.00564923]
[1739210911449,3.71985,2688.3,2687.8,3.90933923]
[1739210912348,3.8716036,2688.4,2687.9,3.72037]
[1739210912553,3.7199,2688.3,2687.8,3.90933923]
[1739210912852,0.55,2688.2,2687.8,3.90933923]
[1739210913215,0.1518636,2688.4,2687.9,3.72037]
[1739210913549,0.1518636,2688.4,2688.0,3.72013]
[1739210913755,0.8168,2688.1,2687.8,0.18884923]
[1739210913957,0.55,2688.0,2687.8,0.18884923]
[1739210914122,0.8168,2688.1,2687.8,0.18884923]
[1739210914318,0.9686636,2688.4,2687.8,0.18884923]
[1739210914531,0.9686636,2688.4,2687.9,3.59818182]
[1739210914860,0.55,2688.3,2688.0,3.72023]
[1739210916049,0.9686636,2688.4,2688.0,3.72017]
[1739210916243,3.71984,2688.3,2687.8,3.90925923]
[1739210916443,0.55,2688.2,2687.8,7.62968923]
[1739210916741,0.55,2688.2,2687.8,3.90925923]
[1739210917154,0.55,2688.2,2687.9,3.72036]
[1739210917354,0.55,2688.2,2687.8,0.18884923]
[1739210917522,0.9686636,2688.4,2688.0,3.72013]
[1739210917855,0.55,2688.3,2688.0,3.72013]
[1739210918354,0.55,2688.3,2687.8,1.00564923]
[1739210918557,0.55,2688.3,2687.8,0.18884923]
[1739210918758,3.72006,2688.2,2687.8,0.18884923]
[1739210918951,4.6884436,2688.4,2688.1,3.72003]
[1739210918952,0.1518636,2688.4,2688.1,3.72003]
[1739210919335,0.1518636,2688.4,2687.8,0.18884923]